bitfinex/quotes_ETHUSD_20251011
["timestamp","ask_amount","ask_price","bid_price","bid_amount"]
[1760156926409,0.001,3810.8,3809.8,0.6356]
[1760156926705,0.001,3811.2,3810.5,2.5536]
[1760156926706,2.62390472,3811.2,3810.5,2.5536]
[1760156926997,2.62392069,3811.1,3810.5,0.6336]
[1760156927172,2.62394384,3811.1,3810.5,0.6336]
[1760156927710,2.6239883,3811.0,3810.5,0.6336]
[1760156927875,2.6239883,3811.0,3809.9,0.3582]
[1760156927876,0.001,3811.7,3811.1,0.6336]
[1760156928075,0.001,3811.7,3811.5,3.25723898]
[1760156928884,0.001,3811.7,3811.5,5.17723898]
[1760156929073,0.001,3811.7,3811.6,5.17717015]
[1760156929276,0.001,3811.7,3811.6,5.53537015]
[1760156929983,0.001,3811.7,3811.6,2.5536]
[1760156930387,0.001,3811.7,3811.6,5.17717015]
[1760156930786,0.001,3811.7,3811.6,2.5536]
[1760156931305,0.001,3811.7,3811.6,5.17717015]
[1760156932676,0.001,3811.7,3811.6,5.53537015]
[1760156932879,0.001,3811.7,3811.6,2.5536]
[1760156933798,0.001,3811.7,3811.6,5.17717015]
[1760156934939,0.001,3811.7,3811.6,5.53537015]
[1760156935083,0.001,3811.7,3811.6,5.17717015]
[1760156936394,0.001,3811.7,3811.6,2.5536]
[1760156936809,0.4466,3811.7,3811.6,1.92]
[1760156937186,0.4466,3811.7,3810.3,0.3582]
[1760156937187,2.62357015,3811.6,3810.8,2.62408231]
[1760156937597,0.001,3811.7,3810.0,1.92]
[1760156937905,0.001,3811.7,3811.4,2.62367445]
[1760156938110,0.001,3811.7,3811.5,2.5536]
[1760156938285,0.001,3811.7,3811.5,0.6336]
[1760156938484,0.001,3811.7,3810.7,0.3582]
[1760156938485,0.001,3811.7,3811.4,0.6336]
[1760156939095,0.001,3811.7,3811.6,0.6336]
[1760156939302,0.001,3811.7,3811.5,0.6336]
[1760156939600,0.001,3811.7,3810.8,2.62411953]
[1760156939923,0.001,3811.7,3810.1,2.2782]
[1760156939924,0.4456,3811.6,3810.9,2.62404953]
[1760156940217,0.4456,3811.6,3811.0,0.6336]
[1760156940391,0.4456,3811.6,3811.4,0.002]
[1760156940586,0.001,3811.7,3811.4,0.002]
[1760156940792,0.001,3811.7,3811.6,5.17717015]
[1760156941415,0.001,3811.7,3811.6,2.5536]
[1760156941992,0.001,3811.7,3811.6,0.6336]
[1760156942498,0.4466,3811.7,3811.4,0.002]
[1760156942704,0.001,3811.7,3811.6,0.6336]
[1760156943221,0.001,3811.7,3811.4,0.6356]
[1760156943624,0.001,3811.7,3811.6,0.6336]
[1760156944121,0.001,3811.7,3811.6,5.53537015]
[1760156944323,0.001,3811.7,3811.6,5.17717015]
[1760156945422,0.001,3811.7,3811.6,5.53537015]
[1760156945922,0.001,3811.7,3811.6,5.17717015]
[1760156946599,0.001,3811.7,3811.6,5.53537015]
[1760156946804,0.001,3811.7,3811.6,5.17717015]
[1760156947527,0.001,3811.7,3811.6,1.92]
[1760156947715,0.001,3811.7,3811.5,1.92]
[1760156948032,0.001,3811.7,3811.6,4.54357015]
[1760156948227,0.001,3811.7,3811.6,5.17717015]
[1760156948703,0.001,3811.7,3811.6,5.53537015]
[1760156948909,0.001,3811.7,3811.6,2.5536]
[1760156949114,0.001,3811.7,3811.6,5.17717015]
[1760156949523,0.001,3811.7,3811.6,5.53537015]
[1760156949825,0.001,3812.1,3812.0,5.17689485]
[1760156950024,0.001,3812.5,3812.4,5.17661962]
[1760156950415,0.001,3812.5,3812.4,5.53381962]
[1760156951802,0.001,3814.0,3813.6,0.6336]
[1760156952200,0.001,3814.0,3813.7,2.5536]
[1760156952600,0.001,3814.0,3813.7,3.25570802]
[1760156952803,0.001,3814.0,3813.9,0.6336]
[1760156953022,0.001,3814.0,3813.9,5.17558799]
[1760156953215,0.001,3814.0,3813.9,5.53278799]
[1760156954235,0.001,3814.4,3814.3,3.25531302]
[1760156954614,0.001,3814.4,3814.3,3.61251302]
[1760156955232,0.001,3814.4,3814.3,5.53251302]
[1760156957019,0.001,3816.6,3814.7,5.17503812]
[1760156957535,2.62041218,3816.2,3814.7,5.17503812]
[1760156957841,2.62039609,3816.3,3814.7,5.53223812]
[1760156958216,0.001,3816.6,3814.7,5.53223812]
[1760156958415,2.62028176,3816.4,3814.7,5.53223812]
[1760156958734,2.62036556,3816.3,3814.7,5.53223812]
[1760156958945,2.62113924,3816.6,3814.7,5.53223812]
[1760156958946,0.001,3816.6,3814.7,5.53223812]
[1760156959305,2.62119116,3816.6,3814.7,5.53223812]
[1760156959509,0.001,3816.6,3814.7,5.53223812]
[1760156959710,0.001,3816.6,3816.3,0.6336]
[1760156959944,0.001,3816.6,3814.9,0.6336]
[1760156960114,0.001,3816.6,3816.4,0.6336]
[1760156960437,0.001,3816.6,3816.5,3.25380175]
[1760156960640,0.001,3816.6,3816.5,0.6336]
[1760156963964,0.001,3816.6,3816.5,3.61100175]
[1760156964269,0.001,3816.6,3816.5,5.53100175]
[1760156968162,0.001,3817.0,3816.9,5.17352716]
[1760156968363,0.001,3817.4,3817.3,3.25325263]
[1760156968561,0.001,3817.4,3817.3,5.17325263]
[1760156968734,0.001,3817.4,3817.3,5.53045263]
[1760156970546,0.001,3818.7,3818.2,0.6336]
[1760156970941,0.001,3818.7,3818.1,0.6336]
[1760156971136,0.001,3818.7,3818.1,5.17264521]
[1760156971341,0.001,3818.7,3817.9,2.5536]
[1760156971540,0.001,3818.7,3818.2,0.6336]
[1760156972172,0.001,3818.7,3818.4,0.6336]
[1760156973239,0.001,3818.7,3817.7,0.3572]
[1760156973466,0.4586,3818.6,3817.2,0.3572]
[1760156973658,2.61896947,3818.3,3817.4,1.92]
[1760156973863,2.61896947,3818.3,3816.6,2.62012623]
[1760156973864,2.6197477,3818.7,3815.9,0.2118]
[1760156974066,2.6192771,3817.9,3816.7,0.3572]
[1760156974261,0.4586,3818.3,3816.9,2.6198614]
[1760156974262,2.61910995,3818.1,3816.9,2.6198614]
[1760156974468,2.61932689,3817.8,3816.9,2.6198614]
[1760156974679,2.61945134,3817.6,3816.7,2.97724844]
[1760156974846,2.61938968,3817.7,3816.7,0.3572]
[1760156975048,2.61945529,3817.6,3816.8,0.6336]
[1760156975261,2.61939292,3817.7,3817.0,0.6336]
[1760156975464,2.61931574,3817.8,3817.2,0.6336]
[1760156975764,0.6746,3817.9,3817.2,0.6336]
[1760156975963,2.61930955,3817.8,3817.2,0.6336]
[1760156976375,0.6746,3817.9,3816.2,2.62039286]
[1760156976673,0.6746,3817.9,3816.5,1.92]
[1760156976674,2.61969982,3817.3,3816.5,1.92]
[1760156976864,2.61969982,3817.3,3816.3,0.3572]
[1760156976865,2.61959252,3817.4,3816.3,2.97753745]
[1760156977069,2.61937815,3817.7,3816.8,1.92]
[1760156977363,3.07794784,3817.8,3816.9,0.6336]
[1760156977557,3.07794784,3817.8,3816.3,2.97747286]
[1760156977558,2.61937815,3817.7,3816.7,2.5536]
[1760156977954,2.61946169,3817.6,3816.7,0.6336]
[1760156978159,2.61967056,3817.3,3816.7,0.6336]
[1760156978759,2.61967056,3817.3,3815.8,0.3572]
[1760156978760,2.61988171,3817.0,3815.8,0.3572]
[1760156978984,0.4586,3817.4,3816.2,0.6336]
[1760156978985,2.61999075,3816.9,3816.2,0.6336]
[1760156979360,2.61965263,3817.3,3816.1,0.6336]
[1760156979561,0.4586,3817.2,3815.6,2.62081979]
[1760156979764,2.61965388,3817.3,3815.6,2.62081979]
[1760156979765,0.4586,3817.1,3815.6,0.3572]
[1760156980074,2.61973074,3817.2,3816.4,1.92]
[1760156980386,2.61973958,3817.2,3816.5,0.6336]
[1760156980587,2.61966396,3817.3,3816.6,2.5536]
[1760156980787,0.216,3817.9,3816.9,2.5536]
[1760156980988,2.6195555,3817.5,3816.7,2.5536]
[1760156981154,2.61946155,3817.6,3816.7,0.6336]
[1760156981354,2.61937015,3817.8,3816.9,0.6336]
[1760156981555,3.0777724,3818.0,3816.9,3.25352297]
[1760156981556,2.61939279,3817.7,3816.9,3.25352297]
[1760156981802,2.61938833,3817.7,3816.9,3.25351593]
[1760156982093,2.61913434,3818.1,3817.3,0.6336]
[1760156982306,2.61931018,3817.8,3817.3,0.6336]
[1760156982456,3.07748691,3818.5,3817.3,0.6336]
[1760156982457,0.4586,3818.5,3817.3,0.6336]
[1760156982793,0.4586,3818.4,3817.2,0.6336]
[1760156982992,0.4586,3818.3,3817.2,0.6336]
[1760156983162,2.6192717,3817.9,3817.2,0.6336]
[1760156983371,0.4586,3818.0,3817.2,0.6336]
[1760156983583,2.61949498,3817.6,3816.9,0.6336]
[1760156984559,0.6746,3817.9,3816.6,0.6336]
[1760156984762,2.61936265,3817.8,3817.1,2.5536]
[1760156985064,2.61944222,3817.7,3816.9,2.5536]
[1760156985266,2.61944222,3817.7,3817.1,2.5536]
[1760156985957,0.6746,3817.9,3817.1,3.25338648]
[1760156986186,0.001,3818.7,3817.1,0.6336]
[1760156986395,2.61926124,3817.9,3817.3,0.6336]
[1760156986568,2.61916516,3818.1,3817.4,0.6336]
[1760156987064,0.001,3818.7,3817.0,2.61985288]
[1760156987065,0.001,3818.7,3817.6,0.6336]
[1760156987267,0.001,3818.7,3818.4,0.6336]
[1760156987789,0.001,3818.7,3818.6,3.2523608]
[1760156988200,0.001,3818.7,3818.6,5.5295608]
[1760156989483,0.001,3818.7,3818.6,2.5536]
[1760156989703,0.001,3818.7,3818.6,5.1723608]
[1760156991114,0.001,3819.1,3819.0,3.25208651]
[1760156991323,0.001,3819.1,3819.0,5.17208651]
[1760156991527,0.001,3819.1,3819.0,5.52928651]
[1760156992926,0.001,3819.5,3819.4,5.17181228]
[1760156993290,0.001,3819.5,3819.4,5.52901228]
[1760156995518,0.001,3821.4,3821.0,0.6336]
[1760156995817,0.001,3821.4,3819.8,2.5536]
[1760156996025,0.001,3821.4,3821.1,3.25064109]
[1760156996320,0.001,3821.4,3821.1,0.6336]
[1760156996690,0.001,3821.4,3821.0,0.6336]
[1760156997327,0.001,3821.4,3821.3,3.25051047]
[1760156998721,0.001,3821.4,3821.3,5.17051047]
[1760156999307,0.001,3821.4,3821.3,2.5536]
[1760157000007,0.001,3821.4,3821.3,5.17051047]
[1760157000434,0.001,3821.4,3821.3,5.52771047]
[1760157001608,0.001,3821.4,3821.3,2.5536]
[1760157002127,0.001,3821.4,3821.3,5.17051047]
[1760157002300,0.001,3821.4,3821.3,2.5536]
[1760157003419,0.001,3821.4,3821.3,5.17051047]
[1760157003631,0.001,3821.4,3821.3,2.5536]
[1760157003808,0.001,3821.4,3821.3,5.17051047]
[1760157004134,0.001,3821.4,3821.3,1.92]
[1760157004503,0.001,3821.4,3821.3,2.5536]
[1760157004699,0.4677,3821.4,3820.2,2.61766399]
[1760157004919,0.4677,3821.4,3820.1,0.1454]
[1760157004920,0.001,3821.4,3820.3,2.97473631]
[1760157005131,0.001,3821.4,3821.3,2.61691047]
[1760157005332,0.001,3821.4,3821.3,5.17051047]
[1760157005532,0.001,3821.4,3821.3,5.52771047]
[1760157005837,0.001,3822.2,3822.1,5.16996273]
[1760157006002,0.001,3822.2,3821.9,2.61645661]
[1760157006003,2.61491843,3824.3,3823.0,5.16934679]
[1760157006330,0.4667,3823.7,3823.0,2.5536]
[1760157006530,0.4677,3823.1,3823.0,2.5536]
[1760157006733,3.08337837,3823.1,3823.0,0.6336]
[1760157007298,0.4677,3823.1,3821.2,0.3552]
[1760157007615,2.61627555,3822.3,3821.4,2.61682521]
[1760157007811,2.61629428,3822.2,3821.4,1.92]
[1760157008017,2.61636695,3822.1,3821.4,1.92]
[1760157008329,0.4667,3822.3,3821.4,2.61682834]
[1760157008533,0.4667,3822.3,3821.5,1.92]
[1760157008702,0.4667,3822.9,3821.4,1.92]
[1760157009042,2.61609595,3822.5,3821.7,0.6336]
[1760157009210,0.4667,3822.9,3821.7,0.6336]
[1760157009410,0.001,3823.1,3822.2,0.6336]
[1760157009832,0.001,3823.1,3822.4,0.6336]
[1760157010063,0.001,3823.1,3823.0,3.24934679]
[1760157010237,0.001,3823.1,3823.0,2.5536]
[1760157010532,0.4677,3823.1,3823.0,0.6336]
[1760157011028,0.4677,3823.1,3821.5,1.92]
[1760157011029,2.61574679,3823.0,3821.4,0.3552]
[1760157011230,0.001,3823.1,3821.7,0.6336]
[1760157011441,2.61606599,3822.6,3821.7,0.6336]
[1760157011736,2.61645041,3822.0,3821.1,2.61703807]
[1760157012234,2.61623102,3822.3,3818.3,2.61892792]
[1760157012235,0.4667,3822.3,3818.3,2.61892792]
[1760157012439,0.4667,3822.3,3820.7,0.3552]
[1760157012644,2.61684876,3821.4,3820.4,2.61751057]
[1760157012811,2.6167829,3821.5,3820.6,2.6173754]
[1760157013337,0.4667,3821.4,3819.6,0.3552]
[1760157013517,0.1304,3820.6,3820.0,2.61779311]
[1760157013713,0.4667,3822.0,3820.5,0.1454]
[1760157013922,0.4667,3822.0,3820.9,2.61713622]
[1760157013923,2.61655459,3821.9,3820.9,2.61713622]
[1760157014127,2.61655459,3821.9,3821.0,0.6336]
[1760157014450,2.61655459,3821.9,3821.0,3.25068308]
[1760157014749,0.4667,3822.0,3821.2,0.6336]
[1760157014920,0.4667,3822.0,3821.2,3.25057275]
[1760157015122,3.08315038,3822.0,3821.1,2.61704712]
[1760157015319,0.4667,3822.0,3821.2,0.6336]
[1760157015651,0.4574,3823.0,3821.9,2.61648734]
[1760157015952,0.4574,3823.0,3822.0,0.6336]
[1760157015953,2.6159153,3822.8,3822.0,0.6336]
[1760157016127,2.61646863,3823.5,3822.5,2.61603232]
[1760157016333,0.001,3823.5,3822.8,0.6336]
[1760157016533,0.001,3823.5,3822.8,3.24947982]
[1760157016851,2.61641663,3823.5,3822.8,0.6336]
[1760157017028,2.61581521,3822.9,3822.8,0.6336]
[1760157017230,0.4574,3822.9,3822.2,2.5536]
[1760157017420,0.001,3823.1,3822.0,2.61636692]
[1760157017620,0.001,3823.1,3821.6,0.3552]
[1760157017621,2.61594786,3822.8,3822.2,0.6336]
[1760157017822,2.61620445,3822.4,3822.2,0.6336]
[1760157018044,2.61620445,3822.4,3821.7,0.6336]
[1760157018222,3.07363397,3822.3,3821.7,0.6336]
[1760157018422,2.6157619,3823.0,3821.8,2.5536]
[1760157018423,2.61581521,3822.9,3821.8,2.5536]
[1760157018628,0.4574,3823.0,3821.8,0.6336]
[1760157018822,2.61623098,3822.3,3821.6,0.6336]
[1760157019217,0.4574,3822.5,3821.5,0.6336]
[1760157019418,0.4574,3822.5,3821.7,1.92]
[1760157019419,2.61648659,3822.0,3821.7,1.92]
[1760157019624,0.4574,3822.5,3820.7,0.3552]
[1760157019625,2.61650666,3821.9,3820.7,0.3552]
[1760157019928,2.61641758,3822.1,3821.2,2.61696764]
[1760157020164,2.61622987,3822.3,3821.5,2.61673378]
[1760157020318,2.61673597,3823.1,3821.7,0.6336]
[1760157020319,0.001,3823.1,3821.7,0.6336]
[1760157020525,0.4584,3823.1,3821.9,0.6336]
[1760157020761,2.61574679,3823.0,3822.2,2.5536]
[1760157021056,0.4584,3823.1,3822.2,1.92]
[1760157021240,0.4584,3823.1,3821.9,0.6336]
[1760157021241,2.61610663,3822.5,3821.9,0.6336]
[1760157021443,2.61648574,3822.0,3821.7,0.6336]
[1760157021760,2.61662539,3821.8,3820.7,0.3552]
[1760157021961,0.4574,3821.9,3820.7,0.3552]
[1760157022259,2.61642731,3822.1,3821.3,0.6336]
[1760157022459,2.61642731,3822.1,3821.3,2.5536]
[1760157022650,0.4574,3822.3,3820.8,0.6336]
[1760157022848,2.61633066,3822.2,3821.4,2.5536]
[1760157023051,0.41033595,3823.0,3821.3,0.6336]
[1760157023359,0.001,3823.5,3821.8,0.6336]
[1760157023360,2.61635789,3822.2,3821.8,0.6336]
[1760157023536,2.61622519,3822.4,3821.6,0.6336]
[1760157023933,2.61623355,3822.3,3821.3,1.92]
[1760157024135,2.61639597,3822.1,3821.3,2.5536]
[1760157024330,0.4574,3822.0,3821.1,2.5536]
[1760157024531,0.2258,3821.9,3821.1,0.6336]
[1760157024729,2.84230081,3821.9,3821.2,0.6336]
[1760157024954,2.61664704,3821.7,3821.2,0.6336]
[1760157025131,3.07387962,3822.0,3821.3,2.5536]
[1760157025456,2.61669852,3821.7,3820.6,0.3552]
[1760157025749,2.61669852,3821.7,3821.0,2.5536]
[1760157025951,2.61669852,3821.7,3821.0,0.6336]
[1760157026132,2.61669852,3821.7,3820.9,1.92]
[1760157026133,2.61669852,3821.7,3820.8,0.6336]
[1760157026336,3.07416262,3821.6,3820.5,2.61739725]
[1760157026531,2.61688811,3821.4,3820.6,2.61737292]
[1760157026855,3.86210913,3821.6,3821.3,0.002]
[1760157026856,0.78794651,3821.6,3821.3,0.002]
[1760157027178,0.001,3822.7,3821.4,0.6336]
[1760157027179,3.07363225,3822.3,3821.4,0.6336]
[1760157027329,3.07363225,3822.3,3821.3,0.002]
[1760157027330,2.61650499,3821.9,3821.3,0.002]
[1760157027538,1.24522443,3822.3,3821.3,0.002]
[1760157027539,2.61657305,3821.8,3821.3,0.002]
[1760157028037,2.61648012,3822.0,3821.3,0.002]
[1760157028233,0.78782443,3822.3,3821.3,0.002]
[1760157028432,2.61669152,3821.7,3821.3,0.002]
[1760157028745,2.84264199,3821.4,3821.3,0.002]
[1760157029141,3.30004199,3821.4,3821.3,0.002]
[1760157030034,0.6832,3821.4,3821.3,0.002]
[1760157030231,0.78782443,3822.3,3821.3,0.002]
[1760157030232,0.2258,3821.9,3821.3,0.002]
[1760157030430,2.61655021,3821.9,3821.3,0.002]
[1760157030652,0.4574,3822.0,3821.3,0.002]
[1760157031332,2.84264199,3821.4,3821.3,0.002]
[1760157031534,2.61711593,3821.0,3820.9,0.002]
[1760157031852,2.84264199,3821.4,3820.5,0.002]
[1760157031853,0.4574,3821.3,3820.5,0.002]
[1760157032050,2.61738993,3820.6,3820.5,0.002]
[1760157032591,3.07478993,3820.6,3820.5,0.002]
[1760157032741,3.86306771,3820.6,3820.5,0.002]
[1760157033130,2.61712973,3821.0,3820.5,0.002]
[1760157033131,0.4574,3821.0,3820.5,0.002]
[1760157033448,3.07478993,3820.6,3820.5,0.002]
[1760157034461,4.99478993,3820.6,3820.5,0.002]
[1760157034641,0.41053477,3820.6,3820.5,0.002]
[1760157034834,0.4574,3821.2,3820.5,0.6356]
[1760157035240,0.4574,3821.2,3820.5,0.002]
[1760157035443,3.07439059,3821.2,3820.5,0.6356]
[1760157035663,2.61725791,3820.8,3820.5,0.002]
[1760157035869,2.61738993,3820.6,3820.5,0.002]
[1760157036271,0.4574,3820.6,3820.5,0.002]
[1760157036507,3.07478993,3820.6,3820.5,0.002]
[1760157037163,2.61795767,3819.8,3819.0,0.002]
[1760157037365,2.61841795,3819.1,3819.0,0.002]
[1760157037676,0.6832,3819.7,3819.0,0.002]
[1760157037860,3.07581795,3819.1,3819.0,0.002]
[1760157038058,2.72346955,3819.3,3819.0,0.002]
[1760157038273,2.6183521,3819.2,3819.0,0.002]
[1760157038794,0.78841865,3819.5,3819.0,0.002]
[1760157038994,2.61829804,3819.3,3819.0,0.002]
[1760157039363,2.61835943,3819.2,3819.0,0.002]
[1760157039570,2.61841795,3819.1,3819.0,0.002]
[1760157039774,3.07581795,3819.1,3819.0,0.002]
[1760157040189,0.78841865,3819.5,3819.0,0.002]
[1760157040361,2.61786957,3819.9,3819.1,0.6336]
[1760157040563,2.61801023,3819.7,3819.0,0.6356]
[1760157040882,2.61815868,3819.5,3819.0,0.002]
[1760157041286,2.61808061,3819.6,3819.0,0.002]
[1760157041458,0.1051037,3820.0,3819.0,0.002]
[1760157041663,0.4574,3819.5,3819.0,0.002]
[1760157041890,2.61834216,3819.3,3819.0,0.002]
[1760157042188,2.61841083,3819.2,3819.0,0.002]
[1760157042713,0.4574,3819.6,3819.0,0.002]
[1760157042878,2.6182521,3819.4,3819.0,0.002]
[1760157043065,0.4574,3819.6,3819.0,0.002]
[1760157043265,2.61835332,3819.2,3819.0,0.002]
[1760157043590,2.61841795,3819.1,3819.0,0.002]
[1760157043779,3.07581795,3819.1,3819.0,0.002]
[1760157044714,0.1051037,3820.0,3819.0,0.002]
[1760157044715,2.61835272,3819.2,3819.0,0.002]
[1760157044862,0.4574,3819.8,3819.0,0.002]
[1760157045062,2.61809762,3819.6,3819.0,0.002]
[1760157045509,2.61814896,3819.5,3819.0,0.002]
[1760157045806,0.435,3819.6,3819.0,0.002]
[1760157045973,0.435,3819.4,3819.0,0.002]
[1760157046297,3.05323136,3819.4,3819.0,0.002]
[1760157046474,2.61841795,3819.1,3819.0,0.002]
[1760157047158,2.61814115,3819.6,3819.0,0.002]
[1760157047361,2.61821472,3819.4,3819.0,0.002]
[1760157047791,0.5401037,3820.0,3819.0,0.002]
[1760157048170,2.61841795,3819.1,3819.0,0.002]
[1760157048570,3.05341795,3819.1,3819.0,0.002]
[1760157048810,3.15854789,3819.1,3819.0,0.002]
[1760157050970,3.15854789,3819.1,3817.1,0.002]
[1760157050971,2.61896655,3818.3,3817.1,0.002]
[1760157051302,4.53896655,3818.3,3817.1,0.002]
[1760157051499,4.99186655,3818.3,3817.1,0.002]
[1760157051671,5.40274155,3818.3,3817.1,0.002]
[1760157051871,2.61972126,3817.2,3817.1,0.002]
[1760157052277,3.07262126,3817.2,3817.1,0.002]
[1760157053991,3.17780788,3817.2,3817.1,0.002]
[1760157054387,3.07262126,3817.2,3817.1,0.002]
[1760157055478,2.62020175,3816.5,3814.8,0.5146]
[1760157055690,2.62020175,3816.5,3815.4,0.6336]
[1760157055874,3.07310175,3816.5,3815.3,2.62100693]
[1760157056276,2.61821165,3819.5,3815.3,0.3632]
[1760157056470,0.4529,3817.2,3816.1,0.6336]
[1760157056698,2.61978989,3817.1,3816.0,0.6336]
[1760157056900,2.62007143,3816.7,3816.0,0.6336]
[1760157057073,2.61987374,3817.0,3816.1,3.25401133]
[1760157057473,2.61987374,3817.0,3816.3,0.6336]
[1760157057900,2.61993485,3816.9,3816.2,0.6336]
[1760157058105,0.4529,3817.2,3816.2,0.6336]
[1760157058307,2.61975306,3817.2,3816.1,3.25406545]
[1760157058613,0.2218,3817.7,3816.1,3.25406545]
[1760157058614,2.61981306,3817.1,3816.4,0.6356]
[1760157058988,2.61958311,3817.5,3816.4,0.6356]
[1760157058989,2.61969896,3817.3,3816.4,0.002]
[1760157059205,2.61972628,3817.2,3816.6,2.5536]
[1760157059805,2.84118969,3817.7,3816.7,0.6336]
[1760157060007,0.2218,3817.7,3816.7,0.6336]
[1760157060209,2.61960523,3817.4,3816.8,0.6336]
[1760157060405,2.61966252,3817.3,3816.6,0.6336]
[1760157060609,2.61966252,3817.3,3816.6,3.25372844]
[1760157060789,2.61863847,3818.8,3817.2,0.6336]
[1760157060989,2.61933247,3817.8,3817.2,0.6336]
[1760157061191,0.4529,3818.5,3817.1,3.25332923]
[1760157061390,2.61928166,3817.9,3817.1,3.25332923]
[1760157061593,2.61931297,3817.8,3817.1,0.6336]
[1760157061794,2.61931297,3817.8,3817.1,3.25337386]
[1760157062005,2.61925564,3817.9,3817.1,3.25337386]
[1760157062211,0.001,3818.3,3817.3,3.25324686]
[1760157062386,2.61903514,3818.2,3817.2,0.6336]
[1760157062591,0.001,3818.3,3817.6,0.6336]
[1760157062790,2.61996692,3818.3,3817.5,0.6336]
[1760157062990,2.61996692,3818.3,3817.4,2.61955804]
[1760157062991,2.61996692,3818.3,3817.4,3.25318401]
[1760157063191,0.001,3818.3,3817.4,0.6336]
[1760157063392,0.001,3818.3,3817.5,0.6336]
[1760157063737,0.001,3818.3,3816.7,2.6200482]
[1760157063738,0.001,3818.3,3815.5,2.62082677]
[1760157064015,2.61942854,3817.7,3817.1,0.6336]
[1760157064216,2.61945289,3817.6,3817.0,0.6336]
[1760157064515,2.61942915,3817.7,3816.9,0.6336]
[1760157064730,0.001,3818.3,3817.1,1.92]
[1760157065014,0.001,3818.3,3817.9,0.6336]
[1760157065191,2.61903759,3818.2,3817.6,0.6336]
[1760157065391,2.61929907,3817.9,3817.6,0.6336]
[1760157065710,0.4529,3818.2,3817.3,0.6336]
[1760157065898,2.61939103,3817.7,3817.3,0.6336]
[1760157066101,0.4529,3818.1,3817.1,5.17338957]
[1760157066308,3.07202413,3818.1,3817.4,0.6336]
[1760157066506,2.61998111,3818.3,3817.5,0.6336]
[1760157066711,2.61916145,3818.1,3817.5,0.6336]
[1760157067013,2.61916145,3818.1,3816.6,2.62211156]
[1760157067014,2.61931948,3817.8,3817.2,0.6336]
[1760157067183,2.61925252,3817.9,3817.2,0.6336]
[1760157067384,2.61918144,3818.0,3817.3,3.25325063]
[1760157067584,3.07293239,3818.3,3817.3,3.25325063]
[1760157067897,2.6191871,3818.0,3817.3,0.6336]
[1760157068099,0.4539,3818.3,3817.2,0.6336]
[1760157068300,0.4539,3818.3,3817.6,0.6336]
[1760157068301,3.07286744,3818.3,3817.6,0.6336]
[1760157068482,3.07286744,3818.3,3817.8,0.6336]
[1760157068483,0.001,3818.3,3817.8,0.6336]
[1760157068893,0.001,3818.3,3817.7,0.6336]
[1760157069122,0.001,3818.3,3817.7,3.25297005]
[1760157069606,2.61997289,3818.3,3817.7,0.6336]
[1760157069916,2.61997289,3818.3,3816.4,0.002]
[1760157069917,2.61910374,3818.1,3816.4,0.002]
[1760157070087,0.4529,3818.2,3816.4,0.002]
[1760157070292,2.61924094,3817.9,3816.4,0.002]
[1760157070512,2.62006445,3816.7,3816.4,0.002]
[1760157071017,3.07296445,3816.7,3816.4,0.002]
[1760157073411,2.62020175,3816.5,3816.4,1e-08]
[1760157073715,4.54020175,3816.5,3816.4,1e-08]
[1760157073905,4.99310175,3816.5,3816.4,1e-08]
[1760157074331,4.99310175,3816.5,3816.2,0.002]
[1760157074332,2.62061374,3815.9,3815.8,1e-08]
[1760157074621,4.76241374,3815.9,3815.8,1e-08]
[1760157074831,5.21531374,3815.9,3815.8,1e-08]
[1760157075500,19.72753486,3815.9,3815.8,1e-08]
[1760157076017,20.13876251,3815.9,3815.8,1e-08]
[1760157077305,20.13876251,3815.9,3812.2,0.3632]
[1760157077306,2.62226512,3813.5,3812.3,2.62308842]
[1760157077622,4.54102586,3815.3,3812.4,2.62299923]
[1760157077623,0.4502,3813.4,3812.4,2.62299923]
[1760157077825,3.07253929,3813.4,3812.4,2.62299923]
[1760157078125,0.4502,3813.4,3813.0,0.6336]
[1760157078333,0.4502,3813.4,3813.0,3.25619872]
[1760157078705,0.2278,3813.6,3812.7,2.62279446]
[1760157078706,0.4502,3813.3,3812.8,0.6336]
[1760157079029,0.4502,3813.3,3813.0,0.6336]
[1760157079232,0.2278,3813.6,3813.0,0.6336]
[1760157079926,0.2278,3814.0,3813.1,2.5536]
[1760157080223,0.4502,3814.5,3813.6,0.6336]
[1760157080531,3.07180211,3814.5,3813.6,0.6336]
[1760157080735,0.41121505,3815.1,3813.6,2.62219425]
[1760157080736,0.4502,3815.0,3813.6,2.62219425]
[1760157080899,0.4502,3815.0,3813.7,2.5536]
[1760157081226,2.62160131,3814.5,3812.9,1.92]
[1760157081414,2.62184117,3814.2,3813.3,0.6336]
[1760157081727,2.62184117,3814.2,3813.1,1.92]
[1760157081728,0.4502,3814.1,3813.1,1.92]
[1760157081927,2.62213382,3813.7,3812.8,1.92]
[1760157082226,2.62213382,3813.7,3812.7,0.6336]
[1760157082394,0.4502,3814.0,3813.3,2.5536]
[1760157082600,0.4502,3814.0,3813.3,3.25593712]
[1760157082831,0.678,3814.6,3813.2,0.6336]
[1760157083032,2.62158837,3814.5,3813.2,0.6336]
[1760157083242,0.678,3814.6,3813.7,0.6336]
[1760157083543,2.009,4350.0,3813.6,0.6336]
[1760157083544,0.4502,3815.0,3813.6,0.6336]
[1760157083834,0.4502,3815.0,3814.4,0.6336]
[1760157084039,3.07143699,3815.0,3814.3,0.6336]
[1760157084208,3.07143699,3815.0,3814.1,2.62182312]
[1760157084209,3.07143699,3815.0,3814.2,0.6336]
[1760157084408,0.4502,3814.9,3814.2,0.6336]
[1760157084643,2.62164187,3814.5,3813.3,3.25598461]